fUST/lending_fUST_20250909
["ID","MTS","AMOUNT","RATE_DAILY","PERIOD"]
[384438694,1757415033021,-480.0,0.00013698,2]
[384438695,1757415033031,-480.0,0.00013698,2]
[384438696,1757415033041,-480.0,0.00013698,2]
[384438697,1757415033052,-480.0,0.00013698,2]
[384438698,1757415033062,-480.0,0.00013698,2]
[384438699,1757415033072,-480.0,0.00013698,2]
[384438700,1757415033082,-571.47,0.00013698,2]
[384438701,1757415033092,-480.0,0.00013698,2]
[384438702,1757415033101,-480.0,0.00013698,2]
[384438703,1757415033111,-480.0,0.00013698,2]
[384438704,1757415033122,-480.0,0.00013698,2]
[384438705,1757415033132,-335.07495058,0.00013698,2]
[384438706,1757415033142,-480.0,0.00013698,2]
[384438707,1757415033152,-480.0,0.00013698,2]
[384438708,1757415033162,-515.99957914,0.00013698,2]
[384438709,1757415033172,-480.0,0.00013698,2]
[384438710,1757415033182,-480.0,0.00013698,2]
[384438711,1757415033193,-480.0,0.00013698,2]
[384438712,1757415033203,-480.0,0.00013698,2]
[384438713,1757415033213,-480.0,0.00013698,2]
[384438714,1757415033223,-480.0,0.00013698,2]
[384438715,1757415033234,-480.0,0.00013698,2]
[384438717,1757415033244,-480.0,0.00013698,2]
[384438719,1757415033254,-480.0,0.00013698,2]
[384438720,1757415033265,-480.0,0.00013698,2]
[384438721,1757415033274,-480.0,0.00013698,2]
[384438722,1757415033284,-480.0,0.00013698,2]
[384438723,1757415033294,-489.86,0.00013698,2]
[384438724,1757415033307,-480.0,0.00013698,2]
[384438725,1757415033317,-480.0,0.00013698,2]
[384438726,1757415033327,-480.0,0.00013698,2]
[384438727,1757415033337,-480.0,0.00013698,2]
[384438728,1757415033349,-480.0,0.00013698,2]
[384438729,1757415033359,-488.19996602,0.00013698,2]
[384438730,1757415033369,-480.0,0.00013698,2]
[384438731,1757415033379,-480.0,0.00013698,2]
[384438732,1757415033389,-187.36,0.00013698,2]
[384438733,1757415033399,-480.0,0.00013698,2]
[384438734,1757415033408,-480.0,0.00013698,2]
[384438735,1757415033417,-480.0,0.00013698,2]
[384438736,1757415033428,-480.0,0.00013698,2]
[384438737,1757415033437,-480.0,0.00013698,2]
[384438738,1757415033446,-480.0,0.00013698,2]
[384438739,1757415033456,-480.0,0.00013698,2]
[384438740,1757415033467,-480.0,0.00013698,2]
[384438741,1757415033477,-480.0,0.00013698,2]
[384438742,1757415033487,-480.0,0.00013698,2]
[384438743,1757415033497,-480.0,0.00013698,2]
[384438744,1757415033506,-681.44,0.00013698,2]
[384438745,1757415033515,-480.0,0.00013698,2]
[384438746,1757415033525,-480.0,0.00013698,2]
[384438747,1757415033535,-486.38592804,0.00013698,2]
[384438748,1757415033544,-480.0,0.00013698,2]
[384438749,1757415033553,-711.95,0.00013698,2]
[384438750,1757415033563,-480.0,0.00013698,2]
[384438751,1757415033572,-480.0,0.00013698,2]
[384438752,1757415033581,-405.65358611,0.00013698,2]
[384438753,1757415033591,-231.49900918,0.00013698,2]
[384438754,1757415033605,-248.50099082,0.00013698,2]
[384438755,1757415033615,-341.74898465,0.00013698,2]
[384438756,1757415033626,-211.73101535,0.00013698,2]
[384438757,1757415033636,-113.68092878,0.00013698,2]
[384438758,1757415033653,-504.54395965,0.00013698,2]
[384438759,1757415033663,-433.54604035,0.00013698,2]
[384438760,1757415033674,-46.45395965,0.00013698,2]
[384438761,1757415033684,-480.0,0.00013698,2]
[384438762,1757415033693,-683.18,0.00013698,2]
[384438763,1757415033703,-480.0,0.00013698,2]
[384438764,1757415033712,-480.0,0.00013698,2]
[384438765,1757415033722,-480.0,0.00013698,2]
[384438766,1757415033731,-480.0,0.00013698,2]
[384438767,1757415033741,-482.25893465,0.00013698,2]
[384438768,1757415033750,-480.0,0.00013698,2]
[384438769,1757415033759,-460.03884252,0.00013698,2]
[384438807,1757415038435,-160.0,0.00013657,2]
[384438808,1757415038445,-19.96115748,0.00013698,2]
[384438809,1757415038455,-480.0,0.00013698,2]
[384438810,1757415038465,-480.0,0.00013698,2]
[384438811,1757415038474,-480.0,0.00013698,2]
[384438812,1757415038483,-204.98887361,0.00013698,2]
[384438813,1757415038494,-275.01112639,0.00013698,2]
[384438814,1757415038503,-480.0,0.00013698,2]
[384438815,1757415038513,-480.0,0.00013698,2]
[384438816,1757415038522,-480.0,0.00013698,2]
[384438817,1757415038531,-344.78329952,0.00013698,2]
[384438818,1757415038541,-480.0,0.00013698,2]
[384438819,1757415038550,-480.0,0.00013698,2]
[384438820,1757415038560,-480.0,0.00013698,2]
[384438821,1757415038570,-391.16756464,0.00013698,2]
[384438822,1757415038580,-480.0,0.00013698,2]
[384438823,1757415038591,-116.03800935,0.00013698,2]
[384438824,1757415038608,-363.96199065,0.00013698,2]
[384438825,1757415038618,-480.0,0.00013698,2]
[384438826,1757415038630,-600.56,0.00013698,2]
[384438827,1757415038640,-480.0,0.00013698,2]
[384438828,1757415038649,-480.0,0.00013698,2]
[384438829,1757415038658,-580.5,0.00013698,2]
[384438830,1757415038667,-480.0,0.00013698,2]
[384438831,1757415038676,-590.13,0.00013698,2]
[384438832,1757415038685,-480.0,0.00013698,2]
[384438833,1757415038695,-480.0,0.00013698,2]
[384438834,1757415038704,-480.0,0.00013698,2]
[384438835,1757415038713,-489.98,0.00013698,2]
[384438836,1757415038722,-480.0,0.00013698,2]
[384438837,1757415038730,-480.0,0.00013698,2]
[384438838,1757415038740,-480.0,0.00013698,2]
[384438839,1757415038749,-487.56,0.00013698,2]
[384438840,1757415038758,-486.94268742,0.00013698,2]
[384438841,1757415038767,-480.0,0.00013698,2]
[384438842,1757415038776,-480.0,0.00013698,2]
[384438843,1757415038785,-480.0,0.00013698,2]
[384438844,1757415038794,-480.0,0.00013698,2]
[384438845,1757415038803,-480.61676135,0.00013698,2]
[384438846,1757415038812,-480.0,0.00013698,2]
[384438847,1757415038821,-480.0,0.00013698,2]
[384438848,1757415038831,-480.0,0.00013698,2]
[384438849,1757415038840,-480.0,0.00013698,2]
[384438850,1757415038850,-480.0,0.00013698,2]
[384438851,1757415038859,-480.0,0.00013698,2]
[384438852,1757415038868,-476.32998248,0.00013698,2]
[384438853,1757415038907,-3.67001752,0.00013698,2]
[384438854,1757415038917,-427.00235589,0.00013698,2]
[384438855,1757415038928,-52.99764411,0.00013698,2]
[384438856,1757415038937,-382.51310873,0.00013698,2]
[384438857,1757415038948,-97.48689127,0.00013698,2]
[384438858,1757415038957,-480.0,0.00013698,2]
[384438859,1757415038966,-452.41838961,0.00013698,2]
[384438860,1757415038978,-27.58161039,0.00013698,2]
[384438861,1757415038987,-480.0,0.00013698,2]
[384438862,1757415038996,-831.37,0.00013698,2]
[384438863,1757415039006,-480.0,0.00013698,2]
[384438864,1757415039016,-480.0,0.00013698,2]
[384438865,1757415039026,-480.0,0.00013698,2]
[384438866,1757415039036,-480.0,0.00013698,2]
[384438867,1757415039045,-480.0,0.00013698,2]
[384438868,1757415039054,-186.3,0.00013698,2]
[384438869,1757415039064,-480.0,0.00013698,2]
[384438870,1757415039073,-485.19781945,0.00013698,2]
[384438871,1757415039082,-480.0,0.00013698,2]
[384438872,1757415039092,-480.0,0.00013698,2]
[384438873,1757415039101,-480.0,0.00013698,2]
[384438874,1757415039112,-480.0,0.00013698,2]
[384438875,1757415039121,-480.0,0.00013698,2]
[384438876,1757415039131,-487.22,0.00013698,2]
[384438877,1757415039140,-480.0,0.00013698,2]
[384438878,1757415039150,-480.0,0.00013698,2]
[384438879,1757415039160,-480.0,0.00013698,2]
[384438880,1757415039169,-480.0,0.00013698,2]
[384438881,1757415039179,-480.0,0.00013698,2]
[384438882,1757415039189,-480.0,0.00013698,2]
[384438883,1757415039198,-480.0,0.00013698,2]
[384438884,1757415039208,-515.8,0.00013698,2]
[384438885,1757415039217,-351.42663554,0.00013698,2]
[384438886,1757415039227,-535.36,0.00013698,2]
[384438887,1757415039236,-480.0,0.00013698,2]
[384438888,1757415039245,-208.73997423,0.00013698,2]
[384438889,1757415039254,-480.0,0.00013698,2]
[384438890,1757415039264,-480.0,0.00013698,2]
[384438891,1757415039273,-480.0,0.00013698,2]
[384438892,1757415039283,-480.0,0.00013698,2]
[384438893,1757415039292,-480.0,0.00013698,2]
[384438894,1757415039303,-480.0,0.00013698,2]
[384438895,1757415039315,-503.13,0.00013698,2]
[384438896,1757415039333,-480.0,0.00013698,2]
[384438897,1757415039344,-482.73277784,0.00013698,2]
[384438898,1757415039354,-480.0,0.00013698,2]
[384438899,1757415039364,-1824.91,0.00013698,2]
[384438900,1757415039374,-480.0,0.00013698,2]
[384438901,1757415039384,-603.9,0.00013698,2]
[384438902,1757415039395,-480.0,0.00013698,2]
[384438903,1757415039404,-480.0,0.00013698,2]
[384438904,1757415039414,-489.07,0.00013698,2]
[384438905,1757415039424,-480.0,0.00013698,2]
[384438906,1757415039434,-482.27948589,0.00013698,2]
[384438907,1757415039443,-480.0,0.00013698,2]
[384438908,1757415039453,-480.0,0.00013698,2]
[384438909,1757415039462,-480.0,0.00013698,2]
[384438910,1757415039472,-480.0,0.00013698,2]
[384438911,1757415039482,-519.62763727,0.00013698,2]
[384438912,1757415039492,-819.03,0.00013698,2]
[384438913,1757415039502,-1730.96,0.00013698,2]
[384438914,1757415039512,-570.79,0.00013698,2]
[384438915,1757415039522,-480.0,0.00013698,2]
[384438916,1757415039531,-5297.49,0.00013698,2]
[384438917,1757415039540,-480.0,0.00013698,2]
[384438918,1757415039550,-480.0,0.00013698,2]
[384438919,1757415039559,-1133.75,0.00013698,2]
[384438920,1757415039569,-480.0,0.00013698,2]
[384438921,1757415039578,-480.0,0.00013698,2]
[384438922,1757415039587,-480.0,0.00013698,2]
[384438923,1757415039597,-480.0,0.00013698,2]
[384438924,1757415039606,-480.0,0.00013698,2]
[384438925,1757415039615,-676.52,0.00013698,2]
[384438926,1757415039625,-480.0,0.00013698,2]
[384438927,1757415039634,-584.55,0.00013698,2]
[384438928,1757415039643,-480.0,0.00013698,2]
[384438929,1757415039652,-480.0,0.00013698,2]
[384438930,1757415039661,-734.82,0.00013698,2]
[384438931,1757415039671,-483.89273862,0.00013698,2]
[384438932,1757415039682,-172.59349729,0.00013698,2]
[384438933,1757415039692,-1344.04,0.00013698,2]
[384438934,1757415039701,-480.0,0.00013698,2]
[384438935,1757415039710,-881.15,0.00013698,2]
[384438936,1757415039719,-480.0,0.00013698,2]
[384438937,1757415039728,-480.0,0.00013698,2]
[384438938,1757415039738,-480.0,0.00013698,2]
[384438939,1757415039749,-480.0,0.00013698,2]
[384438940,1757415039758,-480.0,0.00013698,2]
[384438942,1757415039767,-719.23,0.00013698,2]
[384438943,1757415039776,-2773.53,0.00013698,2]
[384438944,1757415039785,-480.0,0.00013698,2]
[384438945,1757415039794,-492.39873177,0.00013698,2]
[384438946,1757415039803,-2322.67,0.00013698,2]
[384438947,1757415039813,-480.0,0.00013698,2]
[384438948,1757415039822,-480.0,0.00013698,2]
[384438949,1757415039831,-834.11,0.00013698,2]
[384438950,1757415039841,-480.0,0.00013698,2]
[384438951,1757415039850,-480.0,0.00013698,2]
[384438952,1757415039859,-846.38,0.00013698,2]
[384438953,1757415039869,-480.0,0.00013698,2]
[384438954,1757415039878,-480.0,0.00013698,2]
[384438955,1757415039888,-1388.3,0.00013698,2]
[384438956,1757415039897,-480.0,0.00013698,2]
[384438957,1757415039906,-480.0,0.00013698,2]
[384438958,1757415039921,-480.0,0.00013698,2]
[384438959,1757415039931,-922.51,0.00013698,2]
[384438961,1757415039941,-480.0,0.00013698,2]
[384438962,1757415039950,-480.0,0.00013698,2]
[384438963,1757415039960,-480.0,0.00013698,2]
[384438964,1757415039971,-480.0,0.00013698,2]
[384438965,1757415039980,-507.17904501,0.00013698,2]
[384438967,1757415039989,-480.0,0.00013698,2]
[384438968,1757415039998,-480.0,0.00013698,2]
[384438971,1757415040009,-480.0,0.00013698,2]
[384438972,1757415040018,-881.56,0.00013698,2]
[384438973,1757415040028,-480.0,0.00013698,2]
[384438974,1757415040038,-480.0,0.00013698,2]
[384438976,1757415040048,-480.0,0.00013698,2]
[384438977,1757415040057,-13504.96,0.00013698,2]
[384438978,1757415040067,-480.0,0.00013698,2]
[384438979,1757415040077,-480.0,0.00013698,2]
[384438980,1757415040086,-480.0,0.00013698,2]
[384438981,1757415040095,-1527.36,0.00013698,2]
[384438982,1757415040104,-717.84,0.00013698,2]
[384438983,1757415040114,-480.0,0.00013698,2]
[384438984,1757415040123,-480.0,0.00013698,2]
[384438985,1757415040134,-783.38,0.00013698,2]
[384438986,1757415040144,-1136.73,0.00013698,2]
[384438988,1757415040153,-868.48,0.00013698,2]
[384438989,1757415040163,-481.718405,0.00013698,2]
[384438990,1757415040172,-596.67933791,0.00013698,2]
[384438991,1757415040182,-536.72782606,0.00013698,2]
[384438992,1757415040192,-480.0,0.00013698,2]
[384438993,1757415040201,-1177.45,0.00013698,2]
[384438994,1757415040210,-2322.15,0.00013698,2]
[384438995,1757415040220,-480.0,0.00013698,2]
[384438996,1757415040233,-480.0,0.00013698,2]
[384438997,1757415040242,-480.0,0.00013698,2]
[384438998,1757415040252,-480.0,0.00013698,2]
[384438999,1757415040262,-480.0,0.00013698,2]
[384439000,1757415040422,-480.0,0.00013698,2]
[384439001,1757415040432,-1573.53,0.00013698,2]
[384439002,1757415040441,-480.0,0.00013698,2]
[384439003,1757415040451,-579.93,0.00013698,2]
[384439004,1757415040460,-480.0,0.00013698,2]
[384439005,1757415040469,-480.0,0.00013698,2]
[384439006,1757415040479,-480.0,0.00013698,2]
[384439007,1757415040489,-480.0,0.00013698,2]
[384439008,1757415040498,-1283.18461491,0.00013698,2]
[384439009,1757415040603,-3278.31538509,0.00013698,2]
[384439010,1757415040612,-424.92599841,0.00013698,2]
[384439011,1757415040623,-55.07400159,0.00013698,2]
[384439012,1757415040633,-484.21622238,0.00013698,2]
[384439013,1757415040642,-306.22,0.00013698,2]
[384439014,1757415040651,-229.01159885,0.00013698,2]
[384439015,1757415040662,-317.40315626,0.00013698,2]
[384439016,1757415040671,-112.02308686,0.00013698,2]
[384439023,1757415043449,-806.66691314,0.00013698,2]
[384439024,1757415043460,-480.0,0.00013698,2]
[384439025,1757415043470,-480.0,0.00013698,2]
[384439026,1757415043479,-480.0,0.00013698,2]
[384439027,1757415043488,-428.75597467,0.00013698,2]
[384439028,1757415043503,-51.24402533,0.00013698,2]
[384439029,1757415043513,-480.0,0.00013698,2]
[384439030,1757415043522,-126.7062697,0.00013698,2]
[384439031,1757415043534,-338.56087347,0.00013698,2]
[384439032,1757415043543,-509.69,0.00013698,2]
[384439033,1757415043552,-480.0,0.00013698,2]
[384439034,1757415043561,-480.0,0.00013698,2]
[384439035,1757415043570,-480.0,0.00013698,2]
[384439036,1757415043579,-4545.71,0.00013698,2]
[384439037,1757415043589,-480.0,0.00013698,2]
[384439038,1757415043598,-480.0,0.00013698,2]
[384439039,1757415043607,-503.05,0.00013698,2]
[384439041,1757415043616,-480.0,0.00013698,2]
[384439042,1757415043626,-480.0,0.00013698,2]
[384439043,1757415043635,-480.0,0.00013698,2]
[384439044,1757415043644,-234.42,0.00013698,2]
[384439045,1757415043653,-480.0,0.00013698,2]
[384439046,1757415043662,-1809.85229159,0.00013698,2]
[384439055,1757415046537,-160.0,0.00013657,2]
[384439056,1757415046547,-698.82770841,0.00013698,2]
[384439057,1757415046556,-1003.81,0.00013698,2]
[384439058,1757415046566,-480.0,0.00013698,2]
[384439059,1757415046575,-935.94,0.00013698,2]
[384439060,1757415046584,-480.0,0.00013698,2]
[384439061,1757415046593,-480.0,0.00013698,2]
[384439062,1757415046602,-2134.29,0.00013698,2]
[384439063,1757415046611,-480.0,0.00013698,2]
[384439064,1757415046621,-540.31,0.00013698,2]
[384439065,1757415046630,-480.0,0.00013698,2]
[384439066,1757415046639,-324.99257198,0.00013698,2]
[384439067,1757415046649,-480.0,0.00013698,2]
[384439068,1757415046658,-819.33,0.00013698,2]
[384439069,1757415046667,-480.0,0.00013698,2]
[384439070,1757415046676,-480.0,0.00013698,2]
[384439071,1757415046686,-480.0,0.00013698,2]
[384439072,1757415046695,-480.0,0.00013698,2]
[384439073,1757415046705,-480.0,0.00013698,2]
[384439074,1757415046714,-480.0,0.00013698,2]
[384439075,1757415046723,-480.0,0.00013698,2]
[384439076,1757415046732,-480.0,0.00013698,2]
[384439077,1757415046741,-480.0,0.00013698,2]
[384439078,1757415046750,-480.0,0.00013698,2]
[384439079,1757415046759,-480.0,0.00013698,2]
[384439080,1757415046768,-482.17,0.00013698,2]
[384439081,1757415046777,-1748.87,0.00013698,2]
[384439082,1757415046786,-480.0,0.00013698,2]
[384439083,1757415046795,-500.0,0.00013698,2]
[384439085,1757415046804,-670.026716,0.00013699,2]
[384439087,1757415046814,-1132.43201,0.00013699,2]
[384439088,1757415046823,-976.0,0.00013751,2]
[384439089,1757415046832,-634.0,0.00013751,2]
[384439090,1757415046841,-2154.0,0.00013751,2]
[384439091,1757415046850,-427.659,0.00013751,2]
[384439092,1757415046859,-250.0,0.00013751,2]
[384439093,1757415046867,-208.842,0.00013751,2]
[384439094,1757415046876,-168.0,0.00013765,2]
[384439095,1757415046886,-1016.60014351,0.00013772,2]
[384439096,1757415046895,-151.0,0.00013872,2]
[384439097,1757415046904,-151.0,0.00013872,2]
[384439098,1757415046913,-151.0,0.00013872,2]
[384439099,1757415046922,-151.0,0.00013872,2]
[384439100,1757415046932,-151.0,0.00013872,2]
[384439101,1757415046941,-151.0,0.00013872,2]
[384439102,1757415046949,-151.0,0.00013872,2]
[384439103,1757415046959,-151.0,0.00013872,2]
[384439104,1757415046968,-151.0,0.00013872,2]
[384439105,1757415046976,-151.0,0.00013872,2]
[384439106,1757415046985,-282.612151,0.00013872,2]
[384439107,1757415046994,-151.0,0.00013872,2]
[384439108,1757415047003,-151.0,0.00013872,2]
[384439109,1757415047012,-151.0,0.00013872,2]
[384439110,1757415047021,-151.0,0.00013872,2]
[384439111,1757415047030,-151.0,0.00013872,2]
[384439112,1757415047039,-151.0,0.00013872,2]
[384439113,1757415047048,-151.0,0.00013872,2]
[384439114,1757415047057,-151.0,0.00013872,2]
[384439115,1757415047067,-151.0,0.00013872,2]
[384439116,1757415047076,-151.0,0.00013872,2]
[384439117,1757415047085,-151.0,0.00013872,2]
[384439118,1757415047095,-151.0,0.00013872,2]
[384439119,1757415047104,-151.0,0.00013872,2]
[384439120,1757415047113,-151.0,0.00013872,2]
[384439121,1757415047123,-151.0,0.00013872,2]
[384439122,1757415047131,-151.0,0.00013872,2]
[384439123,1757415047141,-151.0,0.00013872,2]
[384439124,1757415047150,-151.0,0.00013872,2]
[384439125,1757415047159,-94628.3088309,0.00013872,2]
[384439126,1757415047168,-188.3411242,0.000139,2]
[384439127,1757415047178,-168.0,0.00013907,2]
[384439128,1757415047187,-300.0,0.00013971,2]
[384439129,1757415047196,-300.0,0.00013971,2]
[384439130,1757415047206,-300.0,0.00013971,2]
[384439131,1757415047215,-300.0,0.00013971,2]
[384439132,1757415047224,-300.0,0.00013971,2]
[384439133,1757415047233,-300.0,0.00013971,2]
[384439134,1757415047242,-300.0,0.00013971,2]
[384439135,1757415047252,-300.0,0.00013971,2]
[384439136,1757415047261,-300.0,0.00013971,2]
[384439137,1757415047270,-300.0,0.00013971,2]
[384439138,1757415047279,-300.0,0.00013971,2]
[384439139,1757415047288,-300.0,0.00013971,2]
[384439140,1757415047297,-300.0,0.00013971,2]
[384439141,1757415047311,-300.0,0.00013971,2]
[384439142,1757415047320,-300.0,0.00013971,2]
[384439143,1757415047329,-600.0,0.00013971,2]
[384439144,1757415047339,-151.0,0.00013971,2]
[384439145,1757415047349,-219.44293476,0.00013972,2]
[384439146,1757415047358,-480.0,0.00013972,2]
[384439147,1757415047368,-480.0,0.00013972,2]
[384439148,1757415047378,-480.0,0.00013972,2]
[384439149,1757415047388,-480.0,0.00013972,2]
[384439150,1757415047397,-480.0,0.00013972,2]
[384439151,1757415047406,-575.87,0.00013972,2]
[384439152,1757415047415,-480.0,0.00013972,2]
[384439153,1757415047424,-480.0,0.00013972,2]
[384439154,1757415047434,-480.0,0.00013972,2]
[384439155,1757415047443,-480.0,0.00013972,2]
[384439156,1757415047452,-480.0,0.00013972,2]
[384439157,1757415047461,-480.0,0.00013972,2]
[384439158,1757415047471,-480.0,0.00013972,2]
[384439159,1757415047480,-490.12074521,0.00013972,2]
[384439160,1757415047490,-483.73364546,0.00013972,2]
[384439161,1757415047499,-261.88966626,0.00013972,2]
[384439162,1757415047508,-480.0,0.00013972,2]
[384439163,1757415047517,-480.0,0.00013972,2]
[384439164,1757415047526,-151.0,0.00013972,2]
[384439165,1757415047535,-489.80992069,0.00013972,2]
[384439166,1757415047544,-480.0,0.00013972,2]
[384439167,1757415047554,-489.6346626,0.00013972,2]
[384439168,1757415047563,-480.0,0.00013972,2]
[384439169,1757415047572,-151.0,0.00013972,2]
[384439170,1757415047581,-480.0,0.00013972,2]
[384439171,1757415047590,-480.0,0.00013972,2]
[384439172,1757415047600,-480.0,0.00013972,2]
[384439173,1757415047609,-491.96862822,0.00013972,2]
[384439174,1757415047618,-480.0,0.00013972,2]
[384439175,1757415047627,-480.0,0.00013972,2]
[384439176,1757415047636,-480.0,0.00013972,2]
[384439177,1757415047646,-480.0,0.00013972,2]
[384439178,1757415047655,-172.92931908,0.00013972,2]
[384439179,1757415047664,-536.4,0.00013972,2]
[384439180,1757415047674,-151.0,0.00013972,2]
[384439181,1757415047684,-151.0,0.00013972,2]
[384439182,1757415047693,-151.0,0.00013972,2]
[384439183,1757415047702,-681.44,0.00013972,2]
[384439184,1757415047712,-480.0,0.00013972,2]
[384439185,1757415047721,-480.0,0.00013972,2]
[384439186,1757415047731,-711.95,0.00013972,2]
[384439187,1757415047740,-480.0,0.00013972,2]
[384439188,1757415047750,-480.0,0.00013972,2]
[384439189,1757415047759,-480.0,0.00013972,2]
[384439190,1757415047768,-553.48,0.00013972,2]
[384439191,1757415047777,-285.07369,0.00013972,2]
[384439192,1757415047787,-151.0,0.00013972,2]
[384439193,1757415047796,-480.0,0.00013972,2]
[384439194,1757415047806,-286.0,0.00013972,2]
[384439195,1757415047815,-683.18,0.00013972,2]
[384439196,1757415047824,-480.0,0.00013972,2]
[384439197,1757415047833,-151.0,0.00013972,2]
[384439198,1757415047843,-151.0,0.00013972,2]
[384439199,1757415047852,-151.0,0.00013972,2]
[384439200,1757415047862,-480.0,0.00013972,2]
[384439201,1757415047871,-480.0,0.00013972,2]
[384439202,1757415047881,-480.0,0.00013972,2]
[384439203,1757415047891,-480.0,0.00013972,2]
[384439204,1757415047900,-480.0,0.00013972,2]
[384439205,1757415047909,-480.0,0.00013972,2]
[384439206,1757415047919,-480.0,0.00013972,2]
[384439207,1757415047929,-480.0,0.00013972,2]
[384439208,1757415047938,-480.0,0.00013972,2]
[384439209,1757415047947,-480.0,0.00013972,2]
[384439210,1757415047956,-480.0,0.00013972,2]
[384439211,1757415047966,-480.0,0.00013972,2]
[384439212,1757415047975,-480.0,0.00013972,2]
[384439213,1757415047984,-480.0,0.00013972,2]
[384439214,1757415047994,-480.0,0.00013972,2]
[384439215,1757415048004,-600.56,0.00013972,2]
[384439216,1757415048013,-480.0,0.00013972,2]
[384439217,1757415048023,-480.0,0.00013972,2]
[384439218,1757415048178,-580.5,0.00013972,2]
[384439219,1757415048189,-480.0,0.00013972,2]
[384439220,1757415048198,-590.13,0.00013972,2]
[384439221,1757415048208,-480.0,0.00013972,2]
[384439222,1757415048218,-480.0,0.00013972,2]
[384439223,1757415048227,-480.0,0.00013972,2]
[384439224,1757415048236,-151.0,0.00013972,2]
[384439225,1757415048245,-489.98,0.00013972,2]
[384439226,1757415048256,-480.0,0.00013972,2]
[384439227,1757415048266,-487.56,0.00013972,2]
[384439228,1757415048275,-484.1875951,0.00013972,2]
[384439229,1757415048283,-480.0,0.00013972,2]
[384439230,1757415048293,-480.0,0.00013972,2]
[384439231,1757415048304,-480.0,0.00013972,2]
[384439232,1757415048315,-482.34254024,0.00013972,2]
[384439233,1757415048325,-480.0,0.00013972,2]
[384439234,1757415048335,-480.0,0.00013972,2]
[384439235,1757415048346,-480.0,0.00013972,2]
[384439236,1757415048355,-480.0,0.00013972,2]
[384439237,1757415048365,-480.0,0.00013972,2]
[384439238,1757415048375,-480.0,0.00013972,2]
[384439239,1757415048386,-831.37,0.00013972,2]
[384439240,1757415048395,-480.0,0.00013972,2]
[384439241,1757415048405,-480.0,0.00013972,2]
[384439242,1757415048415,-480.0,0.00013972,2]
[384439243,1757415048425,-480.0,0.00013972,2]
[384439244,1757415048435,-480.0,0.00013972,2]
[384439245,1757415048445,-480.0,0.00013972,2]
[384439246,1757415048455,-480.0,0.00013972,2]
[384439247,1757415048464,-480.0,0.00013972,2]
[384439248,1757415048473,-480.0,0.00013972,2]
[384439249,1757415048483,-480.0,0.00013972,2]
[384439250,1757415048492,-487.22,0.00013972,2]
[384439251,1757415048502,-480.0,0.00013972,2]
[384439252,1757415048511,-480.0,0.00013972,2]
[384439253,1757415048520,-613.87678429,0.00013972,2]
[384439254,1757415048529,-480.0,0.00013972,2]
[384439255,1757415048538,-151.73784694,0.00013972,2]
[384439256,1757415048548,-515.8,0.00013972,2]